Cogmind - Beta 12 @@@ ROGUE MODE // 2023.12.02 @ 15:22:43 Player: charson Result: Self-destructed Performance ------------- Evolutions (3) 1500 Regions Visited (6) 1200 Robots Destroyed (109) 545 Value Destroyed (2513) 2513 Prototype IDs (13) 260 Alien Tech Used (0) 0 Bonus (251) 251 TOTAL SCORE: 6269 Bonus ------- High Alert Combat Kills 146 Follower Combat Kills 105 Cogmind --------- Core Integrity 426/700 Matter 250/300 Energy 18/100 System Corruption 11% Temperature Cool (0) Movement Rolling (85) Location -7/Factory Parts ------- > --- POWER (1) -------- (None) > --- PROPULSION (5) --- Wheel Wheel Wheel Compact Wheel > --- UTILITY (5) ------ Improved Sensor Array Improved Signal Interpreter > --- WEAPON (2) ------- High-powered Field Laser Autogun > --- INVENTORY (5) ---- Wheel Gravmag System Gravmag System Cooled Particle Cannon Peak State ------------ > --- POWER ------------ Micro Nuclear Core > --- PROPULSION ------- Improved Flight Unit Improved VTOL Module Improved VTOL Module Xenon Bombardment Thruster Xenon Bombardment Thruster > --- UTILITY ---------- Small Storage Unit Improved Signal Interpreter Transmission Jammer Hacking Suite System Shield > --- WEAPON ----------- Improved Datajack Power Maul > --- INVENTORY -------- Cesium-ion Thruster Xenon Bombardment Thruster Coolant Injector Improved Sensor Array Hacking Suite Plasma Cannon Mini Grenade Launcher Heavy Missile Launcher [Rating: 46] Favorites ----------- Power Light Angular Momentum Engine Engine Light Angular Momentum Engine Power Core Light Nuclear Core Propulsion Wheel Treads Advanced Treads Wheel Wheel Hover Unit Gravmag System Flight Unit Improved VTOL Module Utility Humpback Device Improved Sensor Array Storage Humpback Processor Improved Signal Interpreter Hackware Hacking Suite Protection Improved Light Armor Plating Weapon Beamcaster Energy Gun Beamcaster Energy Cannon Heavy Ion Cannon Ballistic Gun Assault Rifle Launcher Mini Grenade Launcher Impact Weapon Power Maul Slashing Weapon Makeshift Axe Piercing Weapon Spear Special Melee Weapon Improved Datajack Build | -11 -10 -10 -10 -9 -8 -7 ------- Run | Jun Mat Min Exi Min Mat Fac Slots Evolved 6 | . . . . . 4 2 Power . | . . . . . . . Propulsion 3 | . . . . . 2 1 Utility 3 | . . . . . 2 1 Weapon . | . . . . . . . Parts Attached 160 | 8 14 . 1 3 36 98 Power 11 | 1 2 . . 1 2 5 Engine 7 | 1 . . . 1 2 3 Core 4 | . 2 . . . . 2 Reactor . | . . . . . . . Propulsion 51 | 2 3 . . 1 17 28 Treads 13 | . . . . . 6 7 Leg . | . . . . . . . Wheel 26 | 2 3 . . 1 8 12 Hover 2 | . . . . . . 2 Flight 10 | . . . . . 3 7 Utility 48 | 2 3 . 1 . 9 33 Device 28 | 1 . . . . 8 19 Storage 7 | 1 2 . 1 . . 3 Processor 4 | . 1 . . . 1 2 Hackware 4 | . . . . . . 4 Protection 5 | . . . . . . 5 Artifact . | . . . . . . . Weapon 50 | 3 6 . . 1 8 32 Energy Gun 11 | 2 . . . 1 5 3 Energy Cannon 2 | . . . . . . 2 Ballistic Gun 9 | 1 5 . . . . 3 Ballistic Cannon . | . . . . . . . Launcher 6 | . . . . . . 6 Special Weapon . | . . . . . . . Impact Weapon 8 | . . . . . 1 7 Slashing Weapon 7 | . . . . . 1 6 Piercing Weapon 1 | . . . . . . 1 Special Melee Weapon 6 | . 1 . . . 1 4 Unidentified Prototypes 4 | . . . . . 3 1 Parts Lost 10 | . . . . . 1 9 Power 2 | . . . . . . 2 Propulsion 6 | . . . . . 1 5 Utility 2 | . . . . . . 2 Weapon . | . . . . . . . Highest Loss Streak 5 | . . . . . 1 5 To Critical Strikes . | . . . . . . . Average Slot Usage (%) 91 | . 99 100 93 85 89 90 Engine 5 | . 4 . . 11 8 3 Core 3 | . 8 14 14 2 . 2 Treads 3 | . . . . . 6 3 Wheel 21 | . 28 28 28 28 29 9 Flight 7 | . . . . . . 21 Device 8 | . 5 . . . 14 6 Storage 9 | . 14 14 14 14 9 6 Processor 5 | . 8 14 7 . 2 6 Hackware 3 | . . . . . . 10 Energy Gun 8 | . 9 . . 11 16 2 Ballistic Gun 6 | . 18 28 28 16 . . Impact Weapon 1 | . . . . . . 3 Special Melee Weapon 1 | . . . . . . 3 Naked Turns . | . . . . . . . Heaviest Build 231 | 13 50 48 208 215 224 231 Greatest Support 62 | 32 32 26 26 26 46 62 Greatest Overweight (x) 11 | . 1 1 7 8 8 11 Average Overweight (x) 1 | . . 1 2 7 5 . Largest Inventory Capacity 35 | 8 20 20 35 35 35 35 Average Capacity 25 | 7 18 20 25 35 35 17 Most Carried 35 | 8 20 20 23 35 35 35 Average Carried 24 | 4 18 19 19 31 34 16 Final Capacity 35 | 8 20 20 35 35 35 5 Final Carried 35 | 8 20 20 23 35 35 4 Class Distribution -------------------- 56% | Hauler-Mutant 21% | Mutant 19% | Hacker-Sprinter Dominant Class ---------------- Mutant | -10/Materials Mutant | -10/Mines Mutant | -10/Exiles Hauler-Mutant | -9/Mines Hauler-Mutant | -8/Materials Hacker-Sprinter | -7/Factory Resources | -11 -10 -10 -10 -9 -8 -7 ----------- Run | Jun Mat Min Exi Min Mat Fac Matter Collected 2579 | 276 538 49 20 74 360 1262 Remotely . | . . . . . . . Salvage Created 3568 | 130 648 . . 97 1403 1290 Parts 218 | 6 41 . . 14 79 78 Haulers Intercepted 9 | . 2 . . . 4 3 Recyclers Shooed 1 | . . . . 1 . . Parts Field Recycled . | . . . . . . . Retrieved Matter . | . . . . . . . Parts Self-Destructed . | . . . . . . . Prevented . | . . . . . . . Kills | -11 -10 -10 -10 -9 -8 -7 ------- Run | Jun Mat Min Exi Min Mat Fac Combat Hostiles Destroyed 64 | . 10 . . 5 22 27 Guns 40 | . 10 . . 5 20 5 Cannons 1 | . . . . . . 1 AOE 21 | . . . . . 1 20 Classes Destroyed 13 | 3 5 . . . 2 3 Worker 9 | 1 1 . . . 1 6 Builder 3 | . . . . . 2 1 Tunneler 4 | 2 . . . 1 1 . Hauler 9 | . 2 . . . 4 3 Recycler 7 | 1 1 . . . 1 4 Operator 2 | . 1 . . . 1 . Watcher 12 | . 3 . . . 2 7 Swarmer 34 | . 3 . . 5 5 21 Grunt 18 | . 7 . . . 11 . Brawler 1 | . . . . . . 1 Duelist 1 | . . . . . . 1 Sentry 7 | . . . . . 6 1 Programmer 3 | . . . . . . 3 Best Kill Streak 12 | 4 4 . . 3 4 12 Combat Bots Only 7 | . 3 . . 3 4 7 Max Kills in Single Turn 3 | 1 2 . . 1 2 3 Gunslinging 1 | . 1 . . . . . Exploded 3 | . . . . . 1 3 Melee . | . . . . . . . Uniques/NPCs Destroyed . | . . . . . . . Combat | -11 -10 -10 -10 -9 -8 -7 -------- Run | Jun Mat Min Exi Min Mat Fac Damage Taken 3091 | . 315 . . 140 580 2056 Core 441 | . 104 . . 9 54 274 Absorbed by Shields 264 | . . . . . 188 76 Regen/Repaired (Parts) 276 | . 131 . . . 117 28 Core Remaining (%) 81 | 100 . . . 54 90 . Volleys Fired 237 | 8 55 . . 14 82 78 Largest 2 | 2 2 . . 2 2 2 Hottest 155 | 70 70 . . 75 155 135 Shots Fired 374 | 16 109 . . 25 137 87 Gun 332 | 16 109 . . 25 137 45 Cannon 22 | . . . . . . 22 Launcher 20 | . . . . . . 20 Special . | . . . . . . . Kinetic 106 | 8 73 . . 22 . 3 Thermal 214 | 8 36 . . 3 111 56 Explosive 20 | . . . . . . 20 Electromagnetic 34 | . . . . . 26 8 Robot Hit Streak 14 | 9 14 . . 2 10 10 Robot Miss Streak 5 | 2 2 . . 4 5 4 Penetration Max . | . . . . . . . Secondary Targets 5 | . 3 . . . 2 . Max Gunslinging Chain 1 | . 1 . . . 1 . Shots Hit Robots 285 | 12 81 . . 8 110 74 Core Hits 167 | 5 32 . . 6 59 65 Critical Kills 1 | . . . . . . 1 Critical Parts Destroyed 3 | . . . . . . 3 Critical Strikes 14 | 1 3 . . . 3 7 Burn 10 | 1 3 . . . 3 3 Smash 4 | . . . . . . 4 Melee Attacks 78 | . . . . . 7 71 Impact 40 | . . . . . . 40 Slashing 20 | . . . . . 7 13 Piercing 11 | . . . . . . 11 Sneak Attacks 22 | . . . . . 6 16 Combat Hostiles . | . . . . . . . Follow-up Attacks 2 | . . . . . . 2 Damage Inflicted 8569 | 159 1050 . . 180 2728 4452 Guns 4253 | 159 1050 . . 117 2160 767 Cannons 397 | . . . . . . 397 Explosions 1935 | . . . . . 95 1840 Melee 1921 | . . . . . 473 1448 Ramming 63 | . . . . 63 . . Kinetic 971 | 60 751 . . 117 . 43 Thermal 3365 | 99 299 . . . 1771 1196 Explosive 1609 | . . . . . . 1609 Electromagnetic 640 | . . . . . 484 156 Impact 1010 | . . . . . . 1010 Slashing 734 | . . . . . 473 261 Piercing 177 | . . . . . . 177 Highest Corruption 11 | . . . . . . 11 Average Corruption 7 | . . . . . . 7 Corruption Purged . | . . . . . . . Corruption Blocked . | . . . . . . . Effects 91 | . . . . . . 91 Message Errors 20 | . . . . . . 20 Matter Fused 17 | . . . . . . 17 Heat Flow Errors 15 | . . . . . . 15 Energy Discharges 14 | . . . . . . 14 Data Loss (minor) 13 | . . . . . . 13 Data Loss (major) 9 | . . . . . . 9 Misfires 1 | . . . . . . 1 Alerts 1 | . . . . . . 1 Weapon Failures 1 | . . . . . . 1 Overload Shots . | . . . . . . . Overflow Damage 668 | . . . . . 109 559 Projectiles . | . . . . . . . Explosions 49 | . . . . . . 49 Melee 619 | . . . . . 109 510 Knockbacks . | . . . . . . . Impact . | . . . . . . . Kinetic . | . . . . . . . Secondary . | . . . . . . . Self-Inflicted Damage 176 | . . . . 31 . 145 Shots 3 | . . . . . . 3 Rammed 1 | . . . . 1 . . Targets Rammed 1 | . . . . 1 . . Kicked . | . . . . . . . Crushed . | . . . . . . . Highest Temperature 329 | 54 63 . . 114 317 329 Average Temperature 67 | 22 19 . . 22 83 74 Received Heat Transfer 620 | . 132 . . . 297 191 Effects 2 | . . . . . . 2 Interference 2 | . . . . . . 2 Siege Activations . | . . . . . . . Robots Corrupted . | . . . . . . . Combat Hostiles . | . . . . . . . Parts Fried 4 | . . . . . 1 3 Impact Corruptions 8 | . . . . . . 8 Robots Melted 2 | . . . . . 1 1 Combat Hostiles 2 | . . . . . 1 1 Parts Melted 18 | . 1 . . . 9 8 Heat Transferred 6882 | 370 1110 . . . 3561 1841 Parts Sabotaged . | . . . . . . . Parts Stolen . | . . . . . . . Parts Stripped . | . . . . . . . Power Chain Reactions 3 | . . . . . 1 2 Missiles Intercepted . | . . . . . . . Alert | -11 -10 -10 -10 -9 -8 -7 ------- Run | Jun Mat Min Exi Min Mat Fac Peak Influence 840 | 20 167 21 . 114 404 840 Initial 177 | . 13 21 . . 1 177 Average 219 | 5 88 21 . 44 238 315 Maximum Alert Level 3 | . . . . . 2 3 Low Security (%) 47 | 100 100 100 . 100 24 30 Level 1 40 | . . . . . 66 44 Level 2 8 | . . . . . 8 13 Level 3 4 | . . . . . . 11 Level 4 . | . . . . . . . Level 5 . | . . . . . . . High Security . | . . . . . . . Max Security . | . . . . . . . Squads Dispatched 13 | . 1 1 . . 2 9 Investigation 4 | . . . . . 1 3 Extermination 4 | . . . . . . 4 Reinforcement 2 | . 1 . . . 1 . Assault 1 | . . 1 . . . . Garrison 2 | . . . . . . 2 Intercept . | . . . . . . . Searches Triggered 3 | . . . . . . 3 Construction Impeded . | . . . . . . . Haulers Reinforced . | . . . . . . . Active Scanning Responses . | . . . . . . . Cargo Convoy Interrupts . | . . . . . . . Stealth | -11 -10 -10 -10 -9 -8 -7 --------- Run | Jun Mat Min Exi Min Mat Fac Distress Signals 9 | . 1 . . 2 3 3 Communications Jammed 1 | . . . . . . 1 Distress Signals 1 | . . . . . . 1 Times Spotted 138 | . 22 . . 7 49 60 Peak Tracking Total 9 | . 4 . . 3 6 9 Tactical Retreats 21 | . 1 . . . 4 16 Traps | -11 -10 -10 -10 -9 -8 -7 ------- Run | Jun Mat Min Exi Min Mat Fac Traps Triggered 5 | . . . . . . 5 Indirectly . | . . . . . . . Trap Hack Attempts 145 | . 14 . . . 14 117 Triggered . | . . . . . . . Disarmed 3 | . 1 . . . 1 1 Reprogrammed 11 | . . . . . . 11 Reused 9 | . . . . . . 9 Traps Extracted . | . . . . . . . Installed . | . . . . . . . Triggered 10 | . . . . . . 10 Machines | -11 -10 -10 -10 -9 -8 -7 ---------- Run | Jun Mat Min Exi Min Mat Fac Machines Disabled 4 | . . . . . 2 2 Max in Single Turn 1 | . . . . . 1 1 Garrison Access 5 | . . . . . 1 4 Machines Repaired . | . . . . . . . Machines Sabotaged . | . . . . . . . Overloaded Fab Kills . | . . . . . . . Hacking | -11 -10 -10 -10 -9 -8 -7 --------- Run | Jun Mat Min Exi Min Mat Fac Machines Accessed 59 | . 9 . . . 14 36 Terminals 33 | . 7 . . . 9 17 Fabricators 3 | . . . . . . 3 Repair Stations 5 | . 1 . . . 1 3 Recycling Units 8 | . 1 . . . 2 5 Scanalyzers 5 | . . . . . 1 4 Garrison Access 5 | . . . . . 1 4 Total Hacks 188 | . 29 . . . 45 114 Successful 101 | . 13 . . . 30 58 Failed 86 | . 16 . . . 14 56 Catastrophic 12 | . 2 . . . 1 9 Database Lockouts 1 | . . . . . 1 . Manual 79 | . 15 . . . 20 44 Terminals 101 | . 24 . . . 24 53 Fabricators 9 | . . . . . . 9 Repair Stations 22 | . 4 . . . 12 6 Recycling Units 21 | . 1 . . . 4 16 Scanalyzers 28 | . . . . . 4 24 Garrison Access 7 | . . . . . 1 6 Terminal Hacks 29 | . 6 . . . 6 17 Part Schematic 5 | . 1 . . . . 4 Robot Analysis 6 | . 3 . . . 1 2 Prototype ID Bank 4 | . 1 . . . 1 2 Branch Access Points 2 | . . . . . 1 1 Terminal Index 2 | . . . . . 1 1 Scanalyzer Index 1 | . . . . . . 1 Garrison Index 1 | . . . . . . 1 Unreport Threat 2 | . . . . . . 2 Locate Traps 4 | . 1 . . . 2 1 Recall Extermination 1 | . . . . . . 1 Zone Layout 1 | . . . . . . 1 Fabricator Hacks 6 | . . . . . . 6 Load Schematic 3 | . . . . . . 3 Build 3 | . . . . . . 3 Repair Station Hacks 18 | . 4 . . . 12 2 Scan Component 9 | . 2 . . . 6 1 Repair 9 | . 2 . . . 6 1 Recycling Unit Hacks 3 | . 1 . . . 1 1 Retrieve Components 3 | . 1 . . . 1 1 Scanalyzer 17 | . . . . . 4 13 Insert Component 12 | . . . . . 3 9 Analyze 5 | . . . . . 1 4 Garrison Access Hacks 5 | . . . . . 1 4 Seal Access 5 | . . . . . 1 4 Unauthorized Hacks 23 | . 2 . . . 6 15 Terminals 13 | . 2 . . . 6 5 Assimilate 6 | . 1 . . . 3 2 Botnet 4 | . 1 . . . 2 1 Operators 3 | . . . . . 1 2 Fabricators 2 | . . . . . . 2 Prioritize 1 | . . . . . . 1 Recompile 1 | . . . . . . 1 Repair Stations . | . . . . . . . Recycling Units 8 | . . . . . . 8 Reject 3 | . . . . . . 3 Mask 5 | . . . . . . 5 Scanalyzers . | . . . . . . . Garrison Access . | . . . . . . . Data Cores Recovered 1 | . 1 . . . . . Used . | . . . . . . . Hacking Detections 51 | . 7 . . . 14 30 Full Trace Events 6 | . 1 . . . 3 2 Feedback Events . | . . . . . . . Feedback Blocked . | . . . . . . . Robot Schematics Acquired . | . . . . . . . Robots Built . | . . . . . . . Authchips . | . . . . . . . Time . | . . . . . . . Total Robot Build Rating . | . . . . . . . Part Schematics Acquired 10 | . 1 . . . 1 8 Parts Built 5 | . . . . . . 5 Authchips 1 | . . . . . . 1 Time 215 | . . . . . . 215 Total Part Build Rating 24 | . . . . . . 24 Parts Repaired 9 | . 2 . . . 6 1 Time 336 | . 64 . . . 222 50 Parts Recycled . | . . . . . . . Recycled Matter . | . . . . . . . Retrieved Matter . | . . . . . . . Retrieved Components 19 | . 9 . . . 10 . Parts Scanalyzed 6 | . . . . . 1 5 Part Schematics Acquired 5 | . . . . . 1 4 Parts Damaged . | . . . . . . . Bothacking | -11 -10 -10 -10 -9 -8 -7 ------------ Run | Jun Mat Min Exi Min Mat Fac Used RIF Installer . | . . . . . . . Robots Hacked 4 | . . . . . . 4 Non-combat 4 | . . . . . . 4 Combat . | . . . . . . . Robot Hacks Applied 6 | . . . . . . 6 find_chute 3 | . . . . . . 3 find_recycling 1 | . . . . . . 1 check_alert 2 | . . . . . . 2 Relay Couplers Released . | . . . . . . . Fabnet Peak Effective % . | . . . . . . . Robots Rewired . | . . . . . . . Allies Hacked . | . . . . . . . Hacks Repelled . | . . . . . . . Allies | -11 -10 -10 -10 -9 -8 -7 -------- Run | Jun Mat Min Exi Min Mat Fac Total Allies 8 | . . 1 . 4 2 1 Largest Group 4 | . . 1 1 4 3 1 Highest-Rated Group 71 | . . 31 31 71 40 26 Highest-Rated Ally 31 | . . 31 31 31 16 26 Total Orders 5 | . . . . . 2 3 STAY 3 | . . . . . 1 2 FOLLOW 2 | . . . . . 1 1 Ally Attacks 34 | . . . . 6 28 . Total Damage 303 | . . . . 44 259 . Kills 8 | . . . . 1 7 . Allies Corrupted . | . . . . . . . Allies Melted . | . . . . . . . Intel | -11 -10 -10 -10 -9 -8 -7 ------- Run | Jun Mat Min Exi Min Mat Fac Robot Analysis Total 6 | . 3 . . . 1 2 Derelict Logs Recovered 2 | . . 1 . 1 . . Drone Launches . | . . . . . . . Drone Recoveries . | . . . . . . . Exploration | -11 -10 -10 -10 -9 -8 -7 ------------- Run | Jun Mat Min Exi Min Mat Fac Turns Passed 10444 | 109 1368 342 588 890 3434 3713 Spaces Moved 8880 | 66 854 318 435 402 1629 5176 Core 15 | 3 . . . . . 12 Treads 57 | . . . . . . 57 Legs . | . . . . . . . Wheels 4339 | 63 854 318 435 402 1629 638 Hover 165 | . . . . . . 165 Flight 4304 | . . . . . . 4304 Fastest Speed 24 | 50 100 105 105 195 145 24 Average Speed 86 | 97 108 105 127 207 163 44 Slowest Speed 401 | 100 115 105 195 210 210 401 Overloaded Moves . | . . . . . . . Propulsion Burnouts . | . . . . . . . Robots Hopped 31 | . . . . . . 31 Cave-ins Triggered . | . . . . . . . Exploration Rate (%) 73 | 3 98 65 78 90 93 89 Regions Visited 6 Branch Regions 3 Pre-discovered Areas . | . . . . . . . Known Exits Taken 3 | . 1 1 . . 1 . Unknown Exits Taken 3 | 1 . . 1 1 . . Scrap Searched 3 | . . 2 . 1 . . Spaces Dug 28 | . . . . . . 28 Terrain Destroyed 111 | . . . . . 4 107 Melee 28 | . . . . . . 28 Projectile 1 | . . . . . . 1 AOE 82 | . . . . . 4 78 Terrain Rammed . | . . . . . . . Walls Destroyed . | . . . . . . . Machines Disabled . | . . . . . . . Actions | -11 -10 -10 -10 -9 -8 -7 --------- Run | Jun Mat Min Exi Min Mat Fac Total 11204 | 91 1189 326 482 437 2284 6395 Wait 1369 | 1 220 7 . 2 400 739 Move 8815 | 65 853 317 434 401 1628 5117 Hop 28 | . . . . . . 28 Pick Up 146 | 8 18 1 23 12 55 29 Fast Attach 66 | 7 3 . . 1 12 43 Attach 21 | 1 . . 1 . 5 14 Detach 32 | 1 . . 2 1 2 26 Swap 73 | . 11 . . 2 19 41 Drop 183 | . 15 1 22 3 60 82 Fire 237 | 8 55 . . 14 82 78 Melee 73 | . . . . . 7 66 Ram 1 | . . . . 1 . . Kick . | . . . . . . . Crush . | . . . . . . . Escape Stasis 15 | . . . . . . 15 Rewire . | . . . . . . . Trap 145 | . 14 . . . 14 117 Miscellaneous . | . . . . . . . Route ------- -11/Junkyard -10/Materials (discovered 5 exits: *Mat x3 / *Min x2) -10/Mines (discovered 2 exits: *Mat / *Exi) -10/Exiles -9/Mines -8/Materials (discovered 3 exits: *Fac x3) -7/Factory (discovered 7 exits: *Fac x4 / *Sto / *Low x2) History --------- Turn | Location | Event 19 | -11/Junkyard | Discovered new exit (range 16) 110 | -11/Junkyard | Entered Materials 308 | -10/Materials | Build established: Mutant 387 | -10/Materials | Discovered new exit (range 16) 775 | -10/Materials | Discovered new exit (range 7) 781 | -10/Materials | Identified exit to Mines 879 | -10/Materials | Discovered new exit (range 14) 1220 | -10/Materials | Discovered exit to Mines (range 14) 1291 | -10/Materials | Repaired Lgt. Nuclear Core 1319 | -10/Materials | Repaired Assault Rifle 1335 | -10/Materials | Discovered new exit (range 15) 1350 | -10/Materials | Identified exit to Materials 1478 | -10/Materials | Entered Mines 1529 | -10/Mines | A weapon hastily lodged in a ceiling crevice suddenly fell to the ground 1573 | -10/Mines | Learned 8 Materials zone layouts 1631 | -10/Mines | Deemed a non-threat by the Exiles lab entrance 1632 | -10/Mines | Discovered new exit (range 5) 1720 | -10/Mines | Discovered exit to Materials (range 9) 1759 | -10/Mines | Met a Derelict testing a Signal Generator 1816 | -10/Mines | Identified exit to Exiles 1820 | -10/Mines | Entered Exiles 1820 | -10/Exiles | Accompanied by 1 ally 1847 | -10/Exiles | Met 8R-AWN 1865 | -10/Exiles | Met EX-HEX 1915 | -10/Exiles | Met EX-BIN 1927 | -10/Exiles | Met EX-DEC 1995 | -10/Exiles | Visited The Gauntlet 2393 | -10/Exiles | Discovered new exit (range 10) 2408 | -10/Exiles | Entered Mines 2408 | -9/Mines | Accompanied by 1 ally 2458 | -9/Mines | Build established: Hauler-Mutant 2704 | -9/Mines | Received a Mining Laser from a helpful Derelict 2959 | -9/Mines | Assembled infested the area 2964 | -9/Mines | Assisted by a Guerilla fighting off Assembled 2975 | -9/Mines | Assisted by bots powering up and referring to "LRC-V3" 3070 | -9/Mines | Learned 2 Materials zone layouts 3276 | -9/Mines | Discovered new exit (range 10) 3298 | -9/Mines | Entered Materials 3298 | -8/Materials | Accompanied by 3 allies 3298 | -8/Materials | Evolved 4 slots: Propulsion x2, Utility x2 3299 | -8/Materials | Identified exit to Factory 3803 | -8/Materials | Central database locked down 4184 | -8/Materials | Repaired Lgt. Angular Momentum Engine 4210 | -8/Materials | Repaired Lgt. Armor Plating 4260 | -8/Materials | Repaired Lgt. Angular Momentum Engine 4293 | -8/Materials | Repaired Hvy. Assault Rifle 4320 | -8/Materials | Repaired Wheel 4360 | -8/Materials | Repaired Lgt. Deuterium Engine 4958 | -8/Materials | Discovered exit to Factory (range 8) 5905 | -8/Materials | Discovered exit to Factory (range 9) 6732 | -8/Materials | Entered Factory 6732 | -7/Factory | Accompanied by 1 ally 6732 | -7/Factory | Evolved 2 slots: Propulsion x1, Utility x1 7016 | -7/Factory | Identified exit to Storage 7016 | -7/Factory | Identified exit to Lower Caves 7468 | -7/Factory | Discovered new exit (range 11) 7579 | -7/Factory | Identified exit to Factory 7765 | -7/Factory | Destroyed 7 combat bots 7781 | -7/Factory | Lost 5 parts (1p3n1u) 7942 | -7/Factory | Garrison activated, responded to threat 8342 | -7/Factory | Build established: Hacker-Sprinter 8359 | -7/Factory | Discovered exit to Factory (range 6) 8412 | -7/Factory | Repaired Lgt. Angular Momentum Engine 8779 | -7/Factory | Fabricated Adv. Shield Generator? 9017 | -7/Factory | Discovered exit to Factory (range 16) 9132 | -7/Factory | Search patrols dispatched 9480 | -7/Factory | Fabricated System Restoration Module? 9824 | -7/Factory | Discovered exit to Factory (range 15) 9932 | -7/Factory | Search patrols dispatched 10076 | -7/Factory | System corruption reached 10% 10171 | -7/Factory | Fabricated Cld. Particle Cannon? 10332 | -7/Factory | Search patrols dispatched 10445 | -7/Factory | Self-destructed Last Messages --------------- 10306_ Dropped Arm. Treads. 10309_ Acquired Gravmag System. 10313_ Acquired 79 matter. 10321_ Dropped Coolant Injector. 10321_ Dropped Hvy. Missile Launcher. 10322_ Dropped Imp. VTOL Module. 10323_ Dropped Imp. Datajack. 10332_ ALERT: Heightened foreign activity detected, multiple search patrols dispatched. 10345_ ZHCJSQ CC1%EFVNWAKBOKOGR0#Z8LBB 10393_ Acquired Cld. Particle Cannon. 10394_ Connecting with Fabricator... 10401_ System corrupted: Component data lost. 10425_ Acquired Wheel. 10432_ Acquired Com. Wheel. 10436_ Acquired Wheel. 10442_ System corrupted: FCS attempts to trigger Hpw. Field Laser. 10442_ System corrupted: Hpw. Field Laser misfires. 10444_ C-30 ARC bursts open, deploying its payload. 10444_ G-47 Trooper unfolds itself. Map ----- +----------------------------------------------------+ | !![ """ + # # # "" #?# """ # | | !![ """ # #! * # # """ ### # | | !! """ # # !# # """ "#"########## | | # # = + + """ # """"" | | #########+#### # *[# # # "" F" | | #####?### #### # """ # ######### "" "" [ | | #?# # """ # #???????# | | #?# # """ # #???????# | | """ #?# + # #???????# | | """ #?# ####### #???????# | | """ #?# #????## ##??????# """ """ | | ### ########????# #??????# """ """ | | """ ## #???????????# ######+# """ """ | | """ ##T #?#########?# * * # | | """ ### #?# #?# = *###### # | | #?# #?# #?#!!/= #??????############# | | #?# #?# *** #?###!###??????????????????? | | ### ### ** #???#]#????????????????????? | | +#### # ** #####+########?????????????? | | # # *= #?????????????? | | ] # *! #=== =% #?????????????? | | T" =#=]%! %ggg """ """ # ############# | | " %+!!! !#%[! """ """ # ^ | | %#/=""" #!! """ """ # ^^ | | # """ #/ + ^ | | #= """ #! @ """ """ # ^ | | +#### # #! """ """ # ^ | | ########### " " #=!! """ """ ##### #####+### | | " #?????????# "Y" #!!/![ #???# ?# ! | | "G" #?????????# """ # !!!! ! #???# ?#[ """ | | " " #?????????# # !!!]! #???# ?# """ | | #?????????### ##################???#??# """ | | #???????????###???????????????????????# | | #?????????????????????????????????????# "S[ | | #?????????????????????????????????????+ """ | | " #?????????????????????????????????????# "" | | " #?????????????????????????????????????#! [ | | " #?????????????????????????????????????######## | | #????????????????????????????????????????????? | | #####????????????????????????????????????????????? | | ?????????????????????????????????????????????????? | | ?????????????????????????????????????????????????? | | ?????????????????????????????????????????????????? | | ?????????????????????????????????????????????????? | | ?????????????????????????????????????????????????? | | ?????????????????????????????????????????????????? | | ?????????????????????????????????????????????????? | | ?????????????????????????????????????????????????? | | ?????????????????????????????????????????????????? | | ?????????????????????????????????????????????????? | +----------------------------------------------------+ Best States ------------- Heat Dissipation 61 Energy Generation 18 Energy Capacity 160 Matter Stores 300 Matter Capacity 300 Sight Range 16 Robot Scan Range 15 Terrain Scan Density 10 Jamming Range 12 EM Shielding 2 Armor Coverage 225 Propulsion Shielding 66 Evasion (%) 65 Recoil Reduction 3 Offensive Hacking 10 Defensive Hacking 10 Authchip Count 1 Item Schematics ----------------- Cargo Storage Unit | -10/Materials | Hacked Humpback | -8/Materials | Scanalyzed Hacking Suite | -7/Factory | Scanalyzed System Shield | -7/Factory | Scanalyzed System Restoration Module | -7/Factory | Hacked Coolant Injector | -7/Factory | Scanalyzed Lgt. Angular Momentum Engine | -7/Factory | Scanalyzed Hvy. Missile Launcher | -7/Factory | Hacked Gauss Cannon | -7/Factory | Hacked Cld. Particle Cannon | -7/Factory | Hacked Robot Schematics ------------------ None Fabricated ------------ Adv. Shield Generator | x2 | -7/Factory | Preloaded System Restoration Module | x2 | -7/Factory Cld. Particle Cannon | x1 | -7/Factory | Authchip Alien Tech Used ----------------- None Achievements -------------- Packrat Challenges ------------ None Game ------ Seed ImprinterGrenadeWarhead Manual? 0 Play Time 02:23:29 Cumulative 44.9 hours Start 2023.11.30 @ 01:10:12 End 2023.12.02 @ 15:22:43 Sessions 4 Manual Loads 0 Difficulty Rogue Special Mode None Game No. 24 Rogue 24 Adventurer 0 Explorer 0 Win Type - Total 0 Types 0/0/0/0/0/0/0/0/0 Lore% 45 Gallery% 51 Achievement% 45 Wizard Run 0 Options --------- ASCII 0 Keyboard 1 Movement Numpad Keybinds 0 Fullscreen 1 Font 18/SmallcapsGlow Map View 76x50 Tactical HUD 1 Map Filters NONE Filters NONE Steam 1 RUN: 1ec47027-204d-45a3-8fdf-31c857a79ff1